bitfinex/quotes_ETHUSD_20241203
["timestamp","ask_amount","ask_price","bid_price","bid_amount"]
[1733247983665,0.33559133,3566.2,3565.5,3.248783]
[1733247983862,0.04715234,3565.8,3565.4,1.6369]
[1733247984068,0.26207461,3566.0,3565.4,4.44163]
[1733247984377,0.47169571,3565.9,3565.4,4.44163]
[1733247984532,0.02073423,3565.8,3565.4,1.6369]
[1733247984871,0.20964701,3565.7,3565.1,1.5417]
[1733247985044,0.55295263,3565.6,3564.4,1.5417]
[1733247985232,0.55295263,3565.6,3564.6,2.80534]
[1733247985233,0.02073423,3565.6,3564.6,2.80534]
[1733247985423,0.51858497,3565.5,3564.6,2.80534]
[1733247985667,0.47183595,3565.4,3564.6,2.80534]
[1733247985825,0.47183595,3565.3,3564.6,2.80534]
[1733247986030,0.47183595,3565.2,3564.6,2.80534]
[1733247986365,0.02073423,3565.6,3564.6,2.80534]
[1733247986558,0.47165618,3565.5,3564.6,0.02805012]
[1733247986742,0.20962489,3565.4,3564.6,0.02805012]
[1733247987077,0.2620309,3565.3,3564.7,1.6545]
[1733247987237,1.76003202,3566.8,3564.7,1.6545]
[1733247987238,0.26202026,3565.4,3565.3,2.80479]
[1733247987436,0.47154857,3565.6,3565.3,2.80479]
[1733247987758,0.20952831,3566.0,3565.2,2.80481]
[1733247987947,11.88,3566.7,3565.6,2.80456]
[1733247987948,0.20952831,3565.9,3565.6,2.80456]
[1733247988145,0.20952831,3565.8,3565.6,2.80456]
[1733247988363,0.20952831,3565.8,3565.7,2.80449]
[1733247988566,0.47143072,3566.3,3565.7,4.45899]
[1733247988791,0.20952831,3566.2,3565.7,4.45899]
[1733247989097,0.20952831,3566.3,3565.7,4.45899]
[1733247989456,0.20952831,3566.2,3565.7,4.45899]
[1733247989690,0.20952831,3566.3,3565.7,4.45899]
[1733247990007,0.20952831,3566.2,3565.5,4.36615]
[1733247990293,0.20952831,3566.1,3565.2,1.6275]
[1733247990504,0.20952831,3566.0,3565.2,4.43238]
[1733247990676,0.37422831,3565.9,3564.9,1.6275]
[1733247990996,0.27648605,3565.8,3564.9,4.43259]
[1733247991202,0.20952831,3565.7,3564.7,2.80526]
[1733247991409,0.49897425,3565.6,3564.7,2.80526]
[1733247991606,0.49897425,3565.6,3564.6,1.6275]
[1733247991607,0.70850256,3565.6,3564.6,1.6275]
[1733247991764,0.046148,3565.5,3565.1,2.80489]
[1733247992105,0.046148,3565.5,3564.6,1.6275]
[1733247992106,0.25567631,3565.5,3565.4,2.80473]
[1733247992400,0.046148,3565.5,3565.4,2.80473]
[1733247992761,0.1647,3565.9,3565.5,2.80465]
[1733247993163,0.0461312,3565.8,3565.7,2.80449]
[1733247993418,0.20952831,3566.2,3565.7,2.80449]
[1733247993570,0.04614351,3565.8,3565.7,2.80449]
[1733247993773,0.1647,3566.3,3565.7,2.80449]
[1733247994093,0.37422831,3566.3,3565.7,2.80449]
[1733247994416,0.04621773,3566.2,3565.7,2.80449]
[1733247995317,0.04621773,3566.2,3565.3,4.43227]
[1733247995617,0.04621773,3566.2,3565.8,2.80441]
[1733247995964,0.1647,3566.3,3565.8,2.80441]
[1733247996167,0.04642232,3566.1,3565.8,2.80441]
[1733247996401,0.1647,3566.3,3565.9,2.80431]
[1733247996610,0.2617609,3566.6,3565.9,2.80431]
[1733247996611,0.03890377,3566.0,3565.9,2.80431]
[1733247996812,0.20938966,3566.4,3565.9,2.80431]
[1733247996973,0.02073423,3566.5,3565.7,0.55]
[1733247997175,0.04621288,3566.3,3565.7,0.55]
[1733247997369,0.02073423,3566.5,3565.7,2.80449]
[1733247997569,0.04619433,3566.2,3565.7,2.80449]
[1733247997771,1.30404384,3566.4,3565.4,0.55]
[1733247998002,0.04609959,3566.1,3565.4,0.55]
[1733247998231,0.1647,3566.3,3565.3,1.6275]
[1733247998382,0.04608104,3566.0,3565.4,2.80471]
[1733247998583,2.96877,3566.3,3565.1,2.8049]
[1733247998584,0.02073423,3566.2,3565.1,2.8049]
[1733247998820,0.1647,3566.1,3564.8,2.80518]
[1733247999116,2.80444,3565.8,3564.8,2.80518]
[1733247999333,0.1647,3565.6,3564.7,1.5404]
[1733247999515,0.02073423,3565.5,3564.7,4.34562]
[1733247999727,0.02073423,3565.5,3564.7,1.5404]
[1733247999931,0.06674451,3565.5,3564.7,1.5404]
[1733248000131,2.80476,3565.4,3564.4,2.80549]
[1733248000330,0.30362045,3565.3,3563.9,2.80591]
[1733248000540,0.1647,3565.6,3564.2,1.5849]
[1733248000541,2.96934,3565.6,3564.2,1.5849]
[1733248000839,0.04576795,3565.2,3564.6,2.80536]
[1733248001048,0.20953989,3565.4,3564.6,2.80536]
[1733248001219,2.96934,3565.6,3564.6,2.80536]
[1733248001220,0.04574939,3565.1,3564.6,2.80536]
[1733248001404,0.1647,3565.6,3564.6,2.80536]
[1733248001605,0.04573775,3565.0,3564.6,2.80536]
[1733248001819,0.20955629,3565.4,3564.6,2.80536]
[1733248002018,0.04572682,3564.9,3564.6,2.80536]
[1733248002233,0.20953054,3565.4,3564.6,2.80536]
[1733248002554,0.55886736,3565.5,3564.6,2.80536]
[1733248002555,0.1647,3565.0,3564.6,2.80534]
[1733248003119,0.1647,3565.0,3564.4,2.80549]
[1733248003422,0.04556722,3564.9,3564.4,2.80549]
[1733248004020,0.04556722,3564.9,3564.6,2.80533]
[1733248004610,0.04556722,3564.9,3564.7,2.80527]
[1733248004807,0.2095505,3565.2,3564.5,2.8054]
[1733248005146,0.1647,3565.3,3564.5,2.80544]
[1733248005362,0.20962688,3565.2,3564.5,2.80544]
[1733248005508,0.04562604,3565.2,3564.6,2.80535]
[1733248005709,0.20960993,3565.1,3564.6,2.80535]
[1733248005907,0.04562604,3565.2,3564.6,2.80535]
[1733248006110,0.25523734,3565.1,3564.6,2.80535]
[1733248006334,0.04562827,3565.1,3564.6,2.80535]
[1733248006534,0.26196928,3565.2,3564.6,2.80535]
[1733248006779,0.04561664,3565.0,3564.6,2.80535]
[1733248006991,0.32520635,3565.2,3564.3,0.55]
[1733248007150,0.04559807,3564.9,3564.3,0.55]
[1733248007489,0.32520635,3565.2,3564.5,2.80541]
[1733248008374,0.27607598,3565.1,3564.5,2.80541]
[1733248008579,0.2097163,3565.0,3564.3,0.55]
[1733248008793,0.18543423,3564.9,3563.8,2.80599]
[1733248008950,0.21025307,3564.9,3564.3,2.80559]
[1733248009152,0.20972809,3564.8,3564.4,2.80546]
[1733248009488,0.0454813,3564.8,3564.5,2.80542]
[1733248009646,0.0454813,3564.8,3564.7,2.80528]
[1733248009853,0.0454813,3564.8,3564.7,4.88678]
[1733248010048,0.028,3565.2,3565.0,2.80499]
[1733248010344,0.63678872,3565.1,3564.4,0.55]
[1733248010556,0.63678872,3565.1,3564.3,1.5315]
[1733248010557,0.82812683,3565.0,3564.3,4.33708]
[1733248010785,0.8073926,3564.9,3564.0,1.5315]
[1733248010958,0.47208872,3564.8,3564.1,3.239486]
[1733248011159,0.1647,3565.1,3564.1,3.239486]
[1733248011160,0.26227151,3565.0,3564.1,3.239486]
[1733248011471,0.26227151,3565.0,3564.5,2.8054]
[1733248011472,0.47213474,3564.9,3564.5,2.8054]
[1733248011677,0.47213474,3564.8,3564.5,2.8054]
[1733248011970,0.04542709,3564.9,3564.1,3.239486]
[1733248011971,0.20986323,3564.7,3564.1,0.433736]
[1733248012179,0.33530388,3565.0,3564.3,2.80557]
[1733248012346,0.04539596,3564.6,3564.3,2.80557]
[1733248012759,0.66858627,3565.0,3564.3,2.80557]
[1733248012990,0.04537739,3564.5,3564.1,2.80574]
[1733248013195,0.26232044,3564.8,3564.2,2.8056]
[1733248013497,0.04535882,3564.4,3564.3,2.80558]
[1733248013656,0.26230271,3564.9,3564.3,2.80558]
[1733248013913,0.26230271,3564.9,3564.1,0.55]
[1733248013914,0.47214475,3564.8,3564.4,2.80552]
[1733248014100,0.47214475,3564.7,3564.4,2.80552]
[1733248014443,0.33530388,3565.0,3564.4,2.80552]
[1733248014648,0.80744565,3564.9,3564.5,2.80544]
[1733248014938,0.47214177,3564.8,3564.5,2.80544]
[1733248015140,0.20984102,3564.7,3564.6,2.80536]
[1733248016348,0.26225551,3564.9,3564.7,2.80526]
[1733248016649,0.50000388,3565.1,3564.4,3.35548]
[1733248016650,0.20977747,3564.8,3564.4,3.35548]
[1733248016815,0.2622183,3564.9,3564.6,0.55]
[1733248017018,0.20977289,3564.8,3564.6,2.0567]
[1733248017350,0.26221611,3565.0,3564.5,2.80536]
[1733248017564,0.47198307,3564.9,3564.5,2.80536]
[1733248017723,0.47197732,3564.8,3564.1,0.55]
[1733248017924,0.1647,3564.8,3563.9,4.86258]
[1733248018162,0.25514111,3564.7,3564.2,2.8056]
[1733248018461,0.2097683,3564.6,3564.3,2.80557]
[1733248018667,0.04537108,3564.7,3564.3,2.80557]
[1733248018821,0.20976601,3564.6,3564.3,2.80557]
[1733248019020,0.1647,3564.8,3564.3,2.80557]
[1733248019226,0.04533394,3564.5,3564.3,2.80557]
[1733248019574,0.1647,3564.8,3564.3,2.80557]
[1733248019575,0.20979832,3564.6,3564.3,2.80557]
[1733248019864,0.1647,3564.8,3564.3,2.80557]
[1733248020062,0.47202883,3564.7,3564.3,2.80557]
[1733248020227,0.47202883,3564.6,3564.2,0.55]
[1733248020427,0.26228363,3564.5,3564.2,3.35566]
[1733248020727,0.1647,3564.8,3564.2,3.35566]
[1733248020929,0.1647,3564.8,3563.4,2.80626]
[1733248020930,0.49284501,3564.7,3563.4,2.80626]
[1733248021130,0.47211078,3564.6,3563.7,2.806]
[1733248021344,0.85649686,3564.5,3563.7,2.806]
[1733248021555,0.47211715,3564.4,3564.0,2.80579]
[1733248021755,0.04515539,3564.5,3563.5,1.5942]
[1733248021955,0.51728401,3564.4,3563.8,2.80592]
[1733248022263,0.47210087,3564.3,3563.8,2.80592]
[1733248022565,0.04518314,3564.4,3563.7,2.80606]
[1733248022764,0.472016,3564.3,3563.7,2.80606]
[1733248023064,0.472016,3564.2,3563.7,2.80606]
[1733248023235,0.04495323,3564.3,3563.7,2.80606]
[1733248023434,0.04495323,3564.3,3564.0,2.80582]
[1733248023758,0.1647,3564.8,3563.6,0.55]
[1733248023759,0.3357334,3564.7,3563.6,0.55]
[1733248023958,0.47197535,3564.6,3563.8,3.35599]
[1733248024136,0.47197535,3564.5,3564.0,2.80576]
[1733248024341,0.0448094,3564.6,3563.8,0.55]
[1733248024342,0.51674761,3564.4,3564.3,2.80559]
[1733248024657,0.51674761,3564.4,3564.3,3.35559]
[1733248024830,0.04477226,3564.4,3564.3,3.35559]
[1733248025040,0.35642545,3564.9,3563.9,3.0]
[1733248025226,0.35642545,3564.9,3564.3,2.80558]
[1733248025227,0.71029712,3564.8,3564.3,2.80558]
[1733248025421,0.47228828,3564.7,3564.2,0.55]
[1733248025672,0.47228828,3564.6,3564.5,2.80543]
[1733248025963,0.2099059,3564.6,3564.5,2.80543]
[1733248026162,0.4722812,3564.6,3564.5,2.80543]
[1733248028062,0.4722812,3564.6,3564.4,0.55]
[1733248028229,0.4722812,3564.5,3564.4,3.35549]
[1733248029070,0.42011483,3564.8,3564.4,4.133839]
[1733248029240,0.42008812,3564.9,3564.7,2.80528]
[1733248029424,0.47261794,3564.8,3564.7,0.55]
[1733248029623,0.47261794,3564.8,3564.3,3.0]
[1733248029624,0.63731794,3564.8,3564.3,2.80552]
[1733248029829,0.47261794,3564.7,3564.2,0.55]
[1733248030029,0.47261794,3564.6,3564.2,0.55]
[1733248030272,0.47261794,3564.5,3564.2,3.35561]
[1733248030582,0.42013299,3564.7,3564.2,3.35561]
[1733248030583,0.26256574,3564.4,3564.2,3.35561]
[1733248030864,0.33613897,3564.7,3564.4,2.80545]
[1733248031176,0.47269613,3564.6,3564.5,3.35544]
[1733248031330,0.47269613,3564.6,3564.5,4.86324]
[1733248031529,0.75637865,3565.0,3564.5,4.86324]
[1733248031779,0.47270545,3564.9,3564.8,2.80518]
[1733248031944,0.47270545,3564.9,3564.6,2.80535]
[1733248032148,0.47270545,3564.8,3564.6,0.55]
[1733248032464,0.47270545,3564.7,3564.6,3.35536]
[1733248033655,0.47270545,3564.7,3564.6,4.06970796]
[1733248034377,0.42025223,3565.1,3565.0,3.35504]
[1733248034571,0.42025321,3565.9,3565.2,1.5391]
[1733248034884,0.42024835,3566.7,3565.9,0.55]
[1733248035039,0.1647,3567.2,3566.6,2.80379]
[1733248035237,0.68264277,3567.1,3566.6,2.80379]
[1733248035469,0.68264277,3567.0,3565.9,0.55]
[1733248035789,0.1647,3567.2,3566.6,2.80371]
[1733248035790,0.26255491,3566.9,3566.6,2.80371]
[1733248035996,1.76083088,3568.0,3566.8,2.80363]
[1733248035997,0.1647,3568.0,3566.8,2.80363]
[1733248036145,0.26215857,3567.9,3566.9,0.57803179]
[1733248036345,0.26215857,3567.8,3567.2,2.80327]
[1733248036581,0.26215857,3567.7,3567.1,2.80339]
[1733248036885,0.26215857,3567.6,3567.5,0.55]
[1733248037042,0.26215857,3567.6,3567.5,3.38110763]
[1733248037238,0.26215857,3567.6,3567.5,3.35308]
[1733248037447,0.26215857,3568.2,3567.7,0.55]
[1733248037986,1.30343371,3568.3,3567.7,0.55]
[1733248038283,0.04254591,3568.1,3567.4,0.55]
[1733248038483,0.06329867,3568.2,3567.4,1.07671722]
[1733248038699,0.0424721,3568.0,3567.3,0.55]
[1733248038989,0.04255913,3568.1,3567.1,0.55]
[1733248039154,0.02073423,3568.2,3567.1,0.55]
[1733248039155,0.04252208,3567.9,3567.1,2.80338]
[1733248039362,1.30343371,3568.3,3567.2,0.02802949]
[1733248039546,0.04269588,3567.8,3567.7,2.80292]
[1733248039753,1.30343371,3568.3,3567.7,0.55]
[1733248039941,0.0426475,3567.8,3567.7,0.55]
[1733248040162,1.30343371,3568.3,3567.6,0.55]
[1733248040363,0.0426475,3567.8,3567.5,0.55]
[1733248040601,1.30343371,3568.3,3567.5,3.56512]
[1733248040811,0.0426428,3567.7,3567.5,0.76206]
[1733248041098,0.0426428,3567.7,3566.4,0.3]
[1733248041099,2.80254,3568.2,3566.8,1.6446]
[1733248041302,1.30343371,3568.3,3566.8,1.6446]
[1733248041511,0.04223572,3568.1,3567.4,2.8031]
[1733248041804,0.028,3568.2,3567.0,2.58084326]
[1733248042020,0.04873423,3568.2,3567.1,0.42254433]
[1733248042311,0.04873423,3568.2,3567.2,2.80329]
[1733248042312,0.04254777,3568.1,3567.2,2.80329]
[1733248042477,0.04254777,3568.1,3566.9,2.58084326]
[1733248042665,0.04254777,3568.1,3566.9,5.38432326]
[1733248042871,2.80261,3568.1,3567.0,2.80346]
[1733248043177,0.028,3568.2,3568.1,3.35261]
[1733248044086,0.028,3568.2,3568.1,4.130255]
[1733248044400,0.028,3568.2,3568.1,6.71109826]
[1733248045368,0.028,3568.2,3568.1,3.90848826]
[1733248045573,0.028,3568.2,3568.1,6.71109826]
[1733248046118,0.028,3568.2,3567.9,0.55]
[1733248046622,0.028,3568.2,3566.9,2.90354]
[1733248046623,0.1927,3568.2,3567.5,0.55]
[1733248046805,0.21343423,3568.2,3567.0,1.5195]
[1733248047012,0.04151111,3568.1,3567.2,2.80324]
[1733248047321,0.04151111,3568.1,3567.6,2.80297]
[1733248047905,0.04151111,3568.1,3567.7,2.80292]
[1733248048116,0.21600982,3568.1,3567.0,1.5195]
[1733248048415,2.80282,3567.9,3566.7,1.5535]
[1733248048624,0.1647,3567.8,3566.7,1.58153201]
[1733248048791,0.20589087,3567.8,3567.2,2.80331]
[1733248049720,0.20589087,3567.8,3566.9,2.8035]
[1733248049890,0.52492541,3567.8,3567.0,0.55]
[1733248050219,0.52492541,3567.8,3566.9,0.55]
[1733248050534,0.52492541,3567.8,3566.6,2.80378]
[1733248050535,0.02073423,3567.7,3566.6,2.80378]
[1733248050677,0.1647,3567.6,3566.4,2.80393]
[1733248051021,2.80315,3567.5,3566.4,2.80393]
[1733248051224,0.02073423,3567.4,3566.1,4.35388]
[1733248051427,0.02073423,3567.4,3566.0,0.74744233]
[1733248051428,2.80348,3567.0,3566.0,0.74744233]
[1733248051577,0.1647,3566.7,3565.7,2.80447]
[1733248051780,0.1927,3566.7,3566.1,2.80411]
[1733248052022,0.04077592,3566.6,3566.1,2.80411]
[1733248052180,0.04077592,3566.6,3565.9,2.80431]
[1733248052388,0.1927,3566.7,3565.6,2.80457]
[1733248052587,0.04078506,3566.5,3566.0,2.80424]
[1733248052810,0.028,3566.5,3566.1,0.55]
[1733248053024,0.028,3566.5,3565.4,4.12520701]
[1733248053193,0.028,3566.5,3565.4,1.5497]
[1733248053194,0.04075614,3566.4,3565.4,1.5497]
[1733248053933,2.84471614,3566.4,3565.3,2.8048]
[1733248054087,0.34657118,3566.4,3565.6,2.80457]
[1733248054285,0.04075614,3566.4,3565.6,2.80457]
[1733248055523,0.04075614,3566.4,3565.4,2.80471]
[1733248055823,0.04075614,3566.4,3565.5,0.55]
[1733248056231,0.04075614,3566.4,3565.7,2.80442]
[1733248056413,0.04075614,3566.4,3565.8,0.280442]
[1733248056727,0.04075614,3566.4,3565.7,2.80443]
[1733248057021,0.04075614,3566.4,3565.8,0.55]
[1733248057227,0.04075614,3566.4,3565.8,3.35441]
[1733248057437,0.04075614,3566.4,3565.8,0.55]
[1733248057788,0.03209128,3566.4,3565.7,0.55]
[1733248058031,0.03209128,3566.4,3565.7,0.885457]
[1733248058204,0.03209128,3566.4,3565.8,2.80434]
[1733248058405,0.03209128,3566.4,3565.8,2.83238061]
[1733248058594,0.03209128,3566.4,3565.8,0.02804061]
[1733248058939,0.028,3566.5,3565.9,0.55]
[1733248059224,0.03982421,3566.4,3566.0,2.80419]
[1733248059387,0.03982421,3566.4,3566.0,3.29792251]
[1733248059595,0.03982421,3566.4,3566.0,0.49373251]
[1733248059797,0.03982421,3566.4,3565.9,0.54133513]
[1733248060735,0.028,3566.5,3566.4,2.80394]
[1733248060947,0.0259,3566.5,3566.4,2.80394]
[1733248061236,0.0259,3566.5,3566.4,3.35394]
[1733248061399,0.0259,3566.5,3565.6,2.80457]
[1733248061605,0.0259,3566.5,3565.5,4.45253]
[1733248061606,0.1647,3566.4,3565.8,0.55]
[1733248061808,0.1647,3566.4,3565.0,3.2638388]
[1733248061809,0.1647,3566.4,3565.4,0.55]
[1733248062142,0.03775116,3566.3,3565.5,0.55]
[1733248062435,0.1647,3566.4,3565.2,1.6479]
[1733248062622,0.1647,3566.1,3565.1,2.80496]
[1733248062954,2.80427,3566.0,3565.1,0.280496]
[1733248063092,0.03765375,3566.0,3565.0,2.80503]
[1733248063289,0.03765375,3566.0,3564.7,1.6479]
[1733248063290,2.80451,3565.7,3564.7,1.6479]
[1733248063492,2.80451,3565.7,3564.3,1.5544]
[1733248063727,0.03754871,3565.6,3564.7,2.80521]
[1733248063932,3.08639797,3565.8,3564.3,1.5544]
[1733248064092,0.03741628,3565.5,3564.7,2.80525]
[1733248064299,0.02073423,3565.6,3564.4,0.47985215]
[1733248064491,0.1647,3565.3,3564.7,2.80527]
[1733248064930,0.03731266,3565.2,3564.8,2.8052]
[1733248065238,0.1647,3565.3,3564.6,2.80533]
[1733248065390,0.0372941,3565.1,3564.4,3.28536215]
[1733248065596,0.1647,3565.3,3564.2,2.80567]
[1733248065796,0.03727554,3565.0,3564.2,2.80567]
[1733248066096,0.1647,3565.3,3564.3,2.80557]
[1733248066292,0.03653411,3564.9,3564.4,2.80552]
[1733248066493,0.42580879,3565.3,3564.5,2.80542]
[1733248066733,0.03651554,3564.8,3564.5,2.80542]
[1733248066921,0.1647,3565.3,3564.5,2.80542]
[1733248067232,0.42580879,3565.3,3564.5,2.80542]
[1733248067449,0.03639293,3565.2,3564.5,2.80542]
[1733248067736,0.03639293,3565.2,3564.6,0.55]
[1733248068037,0.1647,3565.3,3564.5,0.55]
[1733248068209,0.03617057,3565.1,3564.1,0.55]
[1733248068415,0.05691926,3565.2,3564.4,0.55]
[1733248068732,0.42567742,3565.3,3564.4,0.55]
[1733248068733,0.0361479,3565.0,3564.4,0.55]
[1733248068896,0.03614186,3565.1,3564.4,0.55]
[1733248069096,0.03610473,3564.9,3564.4,0.55]
[1733248069296,0.0361233,3565.0,3564.4,0.55]
[1733248069498,0.03609279,3564.8,3564.4,0.55]
[1733248069697,0.03611135,3564.9,3564.2,0.55]
[1733248069913,0.03611135,3564.9,3564.1,2.80574]
[1733248069914,0.03607422,3564.7,3564.1,2.80574]
[1733248070135,0.03609279,3564.8,3563.7,1.5656]
[1733248070335,0.03605565,3564.6,3564.3,2.80553]
[1733248070503,0.1647,3565.3,3564.3,2.80553]
[1733248070834,0.03615884,3565.2,3564.3,2.80553]
[1733248071035,0.1647,3565.0,3564.2,2.80567]
[1733248071335,0.1647,3565.0,3564.2,2.8056]
[1733248071536,0.03599649,3564.9,3564.2,2.8056]
[1733248072042,0.03599649,3564.9,3564.1,2.80572]
[1733248072228,0.1647,3565.0,3564.1,2.80572]
[1733248072544,0.03597792,3564.8,3563.9,0.55]
[1733248072845,0.1647,3565.0,3564.2,2.80561]
[1733248073041,0.03595936,3564.7,3564.2,2.80561]
[1733248073215,0.02073423,3565.1,3564.1,2.1992]
[1733248073548,0.03584035,3564.6,3564.5,3.35544]
[1733248073695,1.30457182,3565.2,3564.7,2.80521]
[1733248073899,1.30457182,3565.2,3564.5,0.55]
[1733248074140,1.30457182,3565.2,3564.6,0.55]
[1733248074346,1.30457182,3565.2,3565.1,2.80497]
[1733248074645,1.30457182,3565.2,3565.1,3.35497]
[1733248075731,0.1647,3566.3,3565.9,2.80433]
[1733248076238,0.03563452,3566.2,3565.9,2.80433]
[1733248076410,0.26074442,3566.2,3565.7,2.80448]
[1733248076599,0.26074442,3566.2,3565.8,2.80441]
[1733248076803,0.26112779,3566.2,3565.8,2.80441]
[1733248077711,0.03615065,3566.1,3565.8,2.80441]
[1733248077916,0.26112779,3566.2,3565.8,2.80441]
[1733248078313,0.26112779,3566.1,3565.1,3.35491]
[1733248078518,0.26141791,3566.0,3565.2,1.30823738]
[1733248078827,0.03613209,3566.0,3565.2,1.30823738]
[1733248079032,0.26141791,3566.1,3565.7,2.80447]
[1733248079325,0.1647,3566.3,3565.7,2.80447]
[1733248079530,0.26154293,3566.2,3565.7,2.80447]
[1733248079738,0.26154293,3566.1,3565.7,2.80447]
[1733248079942,0.26154293,3566.0,3565.8,2.8044]
[1733248080149,0.0361598,3566.0,3565.8,2.8044]
[1733248080359,0.1647,3566.3,3565.8,2.8044]
[1733248080360,0.1647,3566.3,3565.8,2.80437]
[1733248080656,0.29782088,3566.2,3565.8,2.80437]
[1733248080833,0.1647,3566.3,3566.1,2.80418]
[1733248081041,0.26163976,3566.2,3566.1,2.80418]
[1733248081377,0.26163976,3566.2,3565.9,0.55]
[1733248081563,0.1647,3566.8,3565.9,0.55]
[1733248081860,0.92597059,3566.7,3566.2,2.80403]
[1733248082064,0.88967838,3566.6,3565.9,3.3543]
[1733248082232,0.26172024,3566.5,3566.4,2.80394]
[1733248082568,1.30389637,3566.9,3566.6,2.80378]
[1733248082727,0.26171784,3566.8,3566.6,2.80378]
[1733248082930,0.26171784,3566.7,3566.4,3.35393]
[1733248083143,1.30389637,3566.9,3566.2,2.80404]
[1733248083459,1.30389637,3566.9,3566.3,3.354]
[1733248083460,0.29759523,3566.8,3566.3,3.354]
[1733248083758,0.26169202,3566.7,3566.3,3.354]
[1733248084056,0.29776558,3566.6,3566.3,3.354]
[1733248084243,0.03606666,3566.6,3566.3,3.354]
[1733248084563,1.30389637,3566.9,3566.3,0.55]
[1733248084766,0.03625173,3566.5,3566.1,0.55]
[1733248084975,0.03625173,3566.5,3566.4,3.35394]
[1733248085268,1.30389637,3566.9,3566.8,5.01053]
[1733248085764,1.30364688,3567.7,3566.8,1.6569]
[1733248085969,0.26154532,3567.6,3567.0,2.80346]
[1733248086133,0.25449016,3567.6,3566.9,2.80352]
[1733248086454,0.26154141,3567.5,3566.9,3.35352]
[1733248086761,0.26154141,3567.4,3566.9,3.35352]
[1733248087133,0.03546885,3567.3,3566.9,3.35352]
[1733248087657,0.1647,3567.2,3566.5,1.6569]
[1733248087860,0.2004361,3567.2,3566.6,3.35372]
[1733248088030,0.46197751,3567.2,3566.6,3.35372]
[1733248088356,0.2004361,3567.2,3566.5,0.55]
[1733248088565,0.2004361,3567.2,3566.6,0.55]
[1733248088934,0.0357361,3567.2,3566.7,0.55]
[1733248089087,0.0357361,3567.2,3567.1,3.35339]
[1733248089289,1.30364688,3567.7,3567.2,3.35325]
[1733248089494,1.30364688,3567.7,3567.3,2.80323]
[1733248090362,1.30364688,3567.7,3567.5,2.80304]
[1733248090561,1.30364688,3567.7,3567.6,0.55]
[1733248090854,1.30364688,3567.7,3567.6,3.353]
[1733248091053,1.30364688,3567.7,3567.6,3.6883]
[1733248094580,1.30364688,3567.7,3567.4,2.80308]
[1733248094760,0.1647,3567.6,3567.0,2.80347]
[1733248094980,0.1647,3567.6,3567.3,2.80317]
[1733248095179,0.03405846,3567.5,3567.3,2.80317]
[1733248095391,0.1647,3567.6,3567.1,2.80336]
[1733248095794,0.1647,3567.6,3567.2,2.8033]
[1733248095997,0.1647,3567.6,3567.2,2.80324]
[1733248096284,0.1647,3567.6,3567.3,2.80323]
[1733248096285,0.03396009,3567.5,3567.3,2.80323]
[1733248096494,0.03396009,3567.5,3567.4,2.80316]
[1733248096661,1.30364688,3567.7,3567.3,0.280323]
[1733248096863,1.30364688,3567.7,3567.6,3.353]
[1733248098056,0.1647,3568.5,3567.7,0.55]
[1733248098363,0.1647,3568.5,3567.9,0.55]
[1733248099092,0.1647,3568.5,3567.9,3.35275]
[1733248099389,0.03403263,3568.4,3567.9,3.35275]
[1733248099576,0.1647,3568.5,3567.9,3.35275]
[1733248099767,0.03362581,3568.4,3567.9,3.35275]
[1733248100092,0.03362581,3568.4,3567.7,2.80291]
[1733248100666,0.03362581,3568.4,3568.3,2.80245]
[1733248100973,0.03362581,3568.4,3568.3,3.35245]
[1733248101195,1.30338677,3568.5,3568.3,0.55]
[1733248101364,1.30338677,3568.5,3568.4,2.80237]
[1733248101713,0.20854583,3569.8,3568.1,0.5780222]
[1733248101714,0.1647,3569.1,3568.5,3.35228]
[1733248102006,0.1647,3569.1,3568.5,2.80228]
[1733248102007,0.03412507,3569.0,3568.5,2.80228]
[1733248102179,0.03412507,3569.0,3568.1,3.35256]
[1733248102180,0.1647,3569.1,3568.3,2.80242]
[1733248102366,0.03409355,3569.0,3568.4,0.55]
[1733248102563,0.03409355,3569.0,3568.4,3.35234]
[1733248103000,0.03409355,3569.0,3568.1,0.55]
[1733248103179,0.1647,3569.1,3568.5,0.55]
[1733248103375,0.03450031,3569.0,3568.5,0.55]
[1733248104884,0.03450031,3569.0,3568.3,0.55]
[1733248105402,0.03450031,3569.0,3568.9,2.80198]
[1733248105714,0.1647,3569.8,3568.6,0.02801697]
[1733248105914,0.26074216,3569.7,3569.4,2.80151]
[1733248106071,0.1647,3570.5,3569.2,1.5314]
[1733248106272,0.46951104,3570.4,3569.3,0.55]
[1733248106493,0.46951104,3570.3,3569.5,2.8015]
[1733248106693,0.26074216,3570.2,3569.5,2.8015]
[1733248106897,0.26087868,3570.1,3569.5,2.8015]
[1733248107109,0.26087868,3570.0,3569.5,2.8015]
[1733248107313,0.03426208,3570.0,3569.6,2.82936235]
[1733248107617,0.26087627,3570.1,3569.7,2.80132]
[1733248107806,0.43811918,3570.1,3569.6,0.55]
[1733248108189,0.26087627,3570.0,3569.6,0.55]
[1733248108398,0.17724291,3570.1,3569.3,0.55]
[1733248108658,0.0335884,3569.9,3569.3,0.55]
[1733248108781,0.26087627,3570.0,3569.5,0.55]
[1733248108978,0.0335884,3569.9,3569.5,0.55]
[1733248109181,0.26087627,3570.0,3569.5,0.55]
[1733248109404,0.0335884,3569.9,3569.5,0.55]
[1733248109605,0.26087627,3570.0,3569.5,0.55]
[1733248109825,0.26087627,3570.3,3569.5,0.55]
[1733248110021,0.0335884,3569.9,3569.5,0.55]
[1733248110221,0.1647,3569.8,3569.3,0.55]
[1733248110426,0.19856414,3569.8,3569.4,2.80156]
[1733248111120,0.19856414,3569.8,3569.3,0.55]
[1733248111121,0.19856414,3569.8,3569.5,2.80146]
[1733248111312,0.19856414,3569.8,3569.3,3.35164]
[1733248111495,0.19856414,3569.8,3569.4,2.80155]
[1733248112021,0.03386414,3569.8,3569.5,0.02801239]
[1733248112181,0.42547319,3570.1,3569.1,0.55]